bitfinex-derivatives/quotes_BTCF0:USTF0_20250320
["timestamp","ask_amount","ask_price","bid_price","bid_amount"]
[1742492890392,0.0593214,84327.0,84324.0,0.01280984]
[1742492890699,0.1186471,84324.0,84323.0,0.3014479]
[1742492890893,0.1186471,84324.0,84323.0,0.31427682]
[1742492891089,0.2067471,84324.0,84323.0,0.31427682]
[1742492891293,0.2067471,84324.0,84323.0,0.31427366]
[1742492892094,0.2067471,84324.0,84323.0,0.31627366]
[1742492892596,0.1186471,84324.0,84323.0,0.31803257]
[1742492892788,0.1186471,84324.0,84323.0,0.33086518]
[1742492893489,0.1186471,84324.0,84323.0,0.32886518]
[1742492893691,0.1186471,84324.0,84323.0,0.33186518]
[1742492893893,0.2106471,84324.0,84323.0,0.31903257]
[1742492894783,0.2106471,84324.0,84323.0,0.1868]
[1742492894985,0.2106471,84324.0,84323.0,0.0949]
[1742492895188,0.3025471,84324.0,84323.0,0.0919]
[1742492895386,0.3025471,84324.0,84323.0,0.0939]
[1742492895590,0.1186626,84313.0,84303.0,0.059338]
[1742492895892,0.5794626,84313.0,84306.0,0.0899]
[1742492896093,0.5794626,84313.0,84311.0,0.1186641]
[1742492896094,0.1186626,84313.0,84311.0,0.1186641]
[1742492896309,0.0593291,84317.0,84316.0,0.1186569]
[1742492896488,0.0593253,84322.0,84321.0,0.1186513]
[1742492896685,0.0907,84327.0,84326.0,0.1186443]
[1742492896887,0.11881883,84329.0,84328.0,0.1186414]
[1742492897394,0.11881883,84329.0,84328.0,0.2971414]
[1742492898888,0.20691883,84329.0,84328.0,0.31096018]
[1742492899094,0.20691883,84329.0,84328.0,0.20670884]
[1742492899296,0.30171883,84329.0,84328.0,0.11680884]
[1742492899808,0.30171883,84329.0,84328.0,0.11780884]
[1742492900395,0.30171883,84329.0,84328.0,0.23645024]
[1742492900599,0.20691883,84329.0,84328.0,0.32975105]
[1742492900997,0.20691883,84329.0,84328.0,0.31693146]
[1742492901400,0.30171883,84329.0,84328.0,0.31693146]
[1742492902103,0.30171883,84329.0,84328.0,0.22363146]
[1742492902299,0.30171883,84329.0,84328.0,0.22263146]
[1742492902504,0.30171883,84329.0,84328.0,0.22463146]
[1742492902908,0.30171883,84329.0,84328.0,0.10599006]
[1742492903808,0.30171883,84329.0,84328.0,0.22463146]
[1742492904001,0.30171883,84329.0,84328.0,0.22363146]
[1742492904211,0.30171883,84329.0,84328.0,0.31363146]
[1742492904506,0.20691883,84329.0,84328.0,0.31263146]
[1742492905006,0.20691883,84329.0,84328.0,0.32546923]
[1742492905793,0.20691883,84329.0,84328.0,0.41596923]
[1742492905995,0.20691883,84329.0,84328.0,0.40313146]
[1742492907007,0.20691883,84329.0,84328.0,0.41596348]
[1742492907504,0.20691883,84329.0,84328.0,0.01483202]
[1742492907708,0.20691883,84329.0,84314.0,0.22353215]
[1742492907709,0.1186597,84315.0,84314.0,0.22353215]
[1742492908109,0.2987597,84315.0,84314.0,0.22353215]
[1742492908912,0.2987597,84315.0,84314.0,0.20956091]
[1742492909208,0.3987597,84315.0,84314.0,0.21656091]
[1742492909602,0.3885597,84315.0,84314.0,0.21656091]
[1742492909803,0.55273033,84315.0,84314.0,0.21656091]
[1742492910506,0.1186724,84306.0,84293.0,0.11928]
[1742492910705,0.63008,84306.0,84287.0,0.81460371]
[1742492910900,0.63008,84306.0,84292.0,0.0953]
[1742492910901,0.1186907,84293.0,84292.0,0.0953]
[1742492911310,0.3064907,84293.0,84292.0,0.0953]
[1742492911502,0.3064907,84293.0,84292.0,0.2139921]
[1742492912303,0.3064907,84293.0,84292.0,0.0953]
[1742492912600,0.3064907,84293.0,84292.0,0.1013]
[1742492913009,0.3064907,84293.0,84292.0,0.2199921]
[1742492913210,0.3064907,84293.0,84292.0,0.1013]
[1742492913712,0.3074907,84293.0,84292.0,0.1063]
[1742492914105,0.3074907,84293.0,84292.0,0.2249921]
[1742492915109,0.3074907,84293.0,84292.0,0.011]
[1742492915304,0.3074907,84293.0,84292.0,0.1296921]
[1742492915815,0.3074907,84293.0,84292.0,0.2239921]
[1742492916315,0.0963,84293.0,84292.0,0.5847921]
[1742492916510,0.14188429,84294.0,84293.0,0.1186907]
[1742492916711,0.14188429,84294.0,84293.0,0.3021907]
[1742492918211,0.14188429,84294.0,84293.0,0.3081907]
[1742492918409,0.17735536,84299.0,84293.0,0.3081907]
[1742492918410,0.17735536,84299.0,84298.0,0.1186837]
[1742492918609,0.21282643,84304.0,84300.0,0.05934]
[1742492918805,0.21282643,84304.0,84303.0,0.4794766]
[1742492919008,0.118669,84309.0,84308.0,0.1186696]
[1742492919209,0.19956423,84311.0,84310.0,0.1186668]
[1742492919509,0.10626423,84311.0,84310.0,0.49358321]
[1742492919712,0.10626423,84311.0,84310.0,0.58778321]
[1742492919913,0.177285,84319.0,84318.0,0.1186555]
[1742492920116,0.177285,84319.0,84318.0,0.4794555]
[1742492920312,0.177285,84319.0,84318.0,0.5736555]
[1742492921210,0.177285,84319.0,84318.0,0.5766555]
[1742492921610,0.11883204,84319.0,84318.0,0.6714555]
[1742492921810,0.20563204,84319.0,84318.0,0.6714555]
[1742492922005,0.20563204,84319.0,84318.0,0.5786555]
[1742492922217,0.29273204,84319.0,84318.0,0.5786555]
[1742492924216,0.29273204,84319.0,84318.0,0.3658]
[1742492924525,0.39273204,84319.0,84318.0,0.005]
[1742492926212,0.29273204,84319.0,84318.0,0.005]
[1742492926520,0.1186766,84303.0,84302.0,0.00017794]
[1742492926816,0.6987566,84303.0,84302.0,0.00017794]
[1742492927322,0.9328566,84303.0,84302.0,0.00017794]
[1742492928218,0.9328566,84303.0,84302.0,0.00217794]
[1742492928417,0.118709,84280.0,84274.0,0.1187166]
[1742492928620,0.118709,84280.0,84273.0,0.0874]
[1742492928815,0.118709,84280.0,84279.0,0.4795104]
[1742492929008,0.218709,84280.0,84279.0,0.3608]
[1742492929214,0.204609,84280.0,84279.0,0.4795104]
[1742492929427,0.304609,84280.0,84279.0,0.4795104]
[1742492929617,0.204609,84280.0,84279.0,0.49347151]
[1742492929919,0.204609,84280.0,84279.0,0.50828786]
[1742492930115,0.118709,84280.0,84279.0,0.68688786]
[1742492930524,0.204609,84280.0,84279.0,0.68688786]
[1742492930717,0.119709,84280.0,84279.0,0.68107151]
[1742492931021,0.119709,84280.0,84279.0,0.56236111]
[1742492931213,0.205609,84280.0,84279.0,0.56236111]
[1742492931418,0.205609,84280.0,84279.0,0.68107151]
[1742492931721,0.295209,84280.0,84279.0,0.68107151]
[1742492931921,0.119709,84280.0,84279.0,0.68107151]
[1742492932824,0.298209,84280.0,84279.0,0.68107151]
[1742492934919,0.298209,84280.0,84279.0,0.3698]
[1742492934920,0.398209,84280.0,84279.0,0.3698]
[1742492935121,0.298209,84280.0,84279.0,0.009]
[1742492935316,0.398209,84280.0,84279.0,0.009]
[1742492935718,0.448209,84280.0,84279.0,0.009]
[1742492936026,0.46206952,84280.0,84279.0,0.009]
[1742492936728,0.448209,84280.0,84279.0,0.009]
[1742492937117,0.447209,84280.0,84279.0,0.006]
[1742492937317,0.447209,84280.0,84279.0,0.007]
[1742492937517,0.447209,84280.0,84279.0,0.002]
[1742492937725,0.1187203,84272.0,84271.0,0.00017794]
[1742492937926,0.3880403,84272.0,84271.0,0.00017794]
[1742492938115,0.2892403,84272.0,84271.0,0.00017794]
[1742492938322,0.3880403,84272.0,84271.0,0.00017794]
[1742492938626,0.7488403,84272.0,84271.0,0.00017794]
[1742492938833,0.9271403,84272.0,84271.0,0.00017794]
[1742492939219,0.9271403,84272.0,84271.0,0.00317794]
[1742492939428,0.9771403,84272.0,84271.0,0.00317794]
[1742492939628,1.3379403,84272.0,84271.0,0.00717794]
[1742492940717,0.1187456,84254.0,84253.0,0.0885]
[1742492941033,0.1687471,84253.0,84246.0,0.3608]
[1742492941224,0.3471471,84253.0,84247.0,0.10423333]
[1742492941423,0.3471471,84253.0,84252.0,0.4795485]
[1742492942028,0.2971471,84253.0,84252.0,0.6581485]
[1742492943028,0.4164671,84253.0,84252.0,0.6581485]
[1742492943228,0.2971471,84253.0,84252.0,0.6581485]
[1742492943428,0.4164671,84253.0,84252.0,0.6581485]
[1742492943930,0.4164671,84253.0,84252.0,0.6591485]
[1742492945434,0.4164671,84253.0,84252.0,0.6601485]
[1742492945829,0.4164671,84253.0,84252.0,0.453]
[1742492946029,0.4164671,84253.0,84252.0,0.3628]
[1742492947131,0.4164671,84253.0,84252.0,0.4815485]
[1742492947329,0.4164671,84253.0,84252.0,0.3628]
[1742492948320,0.4164671,84253.0,84252.0,0.002]
[1742492948525,0.5164671,84253.0,84252.0,0.002]
[1742492949325,0.1187583,84245.0,84244.0,0.00017794]
[1742492949829,0.2946583,84245.0,84244.0,0.00017794]
[1742492950426,0.3946583,84245.0,84244.0,0.00017794]
[1742492950622,0.2946583,84245.0,84244.0,0.00117794]
[1742492951030,0.3946583,84245.0,84244.0,0.00117794]
[1742492951242,0.3946583,84245.0,84244.0,0.00417794]
[1742492952333,0.3682583,84245.0,84244.0,0.00417794]
[1742492952639,0.2946583,84245.0,84244.0,0.00417794]
[1742492953237,0.1187583,84245.0,84244.0,0.12293764]
[1742492953435,0.1187583,84245.0,84244.0,0.30383764]
[1742492959248,0.2049583,84245.0,84244.0,0.30383764]
[1742492959438,0.2858583,84245.0,84244.0,0.30383764]
[1742492963552,0.2858583,84245.0,84244.0,0.00417794]
[1742492963858,0.1187654,84240.0,84239.0,0.00900991]
[1742492964053,0.0593856,84236.0,84225.0,0.1187828]
[1742492964348,0.1187879,84224.0,84223.0,0.2578]
[1742492964549,0.1187879,84224.0,84223.0,0.00895239]
[1742492964742,0.1187922,84221.0,84220.0,0.2068907]
[1742492965152,0.11936,84235.0,84231.0,0.1187781]
[1742492965453,0.0854,84234.0,84231.0,0.1187781]
[1742492965749,0.11895585,84232.0,84231.0,0.2070781]
[1742492965956,0.11895585,84232.0,84231.0,0.2932781]
[1742492966449,0.11895585,84232.0,84231.0,0.3800781]
[1742492966656,0.11995585,84232.0,84231.0,0.3800781]
[1742492966956,0.12095585,84232.0,84231.0,0.3800781]
[1742492967349,0.06156665,84232.0,84231.0,0.3800781]
[1742492969554,0.23126665,84232.0,84231.0,0.3800781]
[1742492975263,0.06156665,84232.0,84231.0,0.3800781]
[1742492975762,0.06156665,84232.0,84231.0,0.39473983]
[1742492976766,0.14846665,84232.0,84231.0,0.39473983]
[1742492976960,0.1187683,84242.0,84231.0,0.27596173]
[1742492977155,0.059383,84242.0,84241.0,0.1187597]
[1742492977563,0.17656523,84250.0,84244.0,0.1187597]
[1742492977564,0.1781405,84245.0,84244.0,0.1187597]
[1742492977762,0.1781405,84245.0,84244.0,0.13342462]
[1742492977971,0.1781405,84245.0,84244.0,0.38765322]
[1742492978161,0.1781405,84245.0,84244.0,0.4015432]
[1742492978762,0.1821405,84245.0,84244.0,0.4015432]
[1742492979967,0.1871405,84245.0,84244.0,0.4015432]
[1742492980959,0.1871405,84245.0,84244.0,0.1475432]
[1742492982372,0.1871405,84245.0,84244.0,0.2308432]
[1742492983074,0.1871405,84245.0,84244.0,0.23084182]
[1742492983267,0.1871405,84245.0,84244.0,0.11208212]
[1742492983470,0.1871405,84245.0,84244.0,0.14754182]
[1742492983771,0.1871405,84245.0,84244.0,0.13264968]
[1742492983962,0.1871405,84245.0,84244.0,0.14737364]
[1742492984370,0.0593818,84242.0,84235.0,0.0593859]
[1742492984568,0.0593818,84242.0,84220.0,0.21524445]
[1742492984569,0.1187696,84238.0,84237.0,0.1187693]
[1742492985068,0.2851696,84238.0,84237.0,0.2861693]
[1742492985464,0.2851696,84238.0,84237.0,0.29945122]
[1742492986569,0.2881696,84238.0,84237.0,0.29945122]
[1742492987764,0.2881696,84238.0,84237.0,0.31421567]
[1742492988164,0.0874,84238.0,84237.0,0.31421567]
[1742492988368,0.0904,84238.0,84237.0,0.31421567]
[1742492988574,0.2091682,84238.0,84237.0,0.31421567]
[1742492989182,0.2947682,84238.0,84237.0,0.31421567]
[1742492989572,0.2947682,84238.0,84237.0,0.02804637]
[1742492989781,0.1187696,84237.0,84236.0,0.00017805]
[1742492989976,0.2187696,84237.0,84236.0,0.00017805]
[1742492990172,0.2807696,84237.0,84236.0,0.00017805]
[1742492990674,0.3807696,84237.0,84236.0,0.00017805]
[1742492990875,0.2807696,84237.0,84236.0,0.00017805]
[1742492991383,0.2807696,84237.0,84236.0,0.11894905]
[1742492991588,0.2807696,84237.0,84236.0,0.00017805]
[1742492992782,0.2827696,84237.0,84236.0,0.00017805]
[1742492993284,0.2827696,84237.0,84236.0,0.11894905]
[1742492993587,0.166,84237.0,84236.0,0.11894905]
[1742492993789,0.2847696,84237.0,84236.0,0.11894905]
[1742492993996,0.2847696,84237.0,84236.0,0.38728596]
[1742492995591,0.004,84237.0,84236.0,0.86738644]
[1742492996989,0.0608007,84272.0,84236.0,1.56921544]
[1742492997191,0.1709,84264.0,84263.0,0.118733]
[1742492997595,0.1709,84264.0,84263.0,0.29344055]
[1742492997798,0.1709,84264.0,84263.0,0.38998001]
[1742492997992,0.2486731,84276.0,84269.0,0.1187245]
[1742492998297,0.00017805,84272.0,84269.0,0.1187245]
[1742492998498,0.00017805,84272.0,84269.0,0.5634245]
[1742492998683,0.086,84271.0,84269.0,0.5634245]
[1742492998888,0.086,84271.0,84269.0,0.57697737]
[1742492998889,0.2486731,84270.0,84269.0,0.57697737]
[1742492999288,0.2486731,84270.0,84269.0,0.65657737]
[1742492999493,0.2486731,84270.0,84269.0,0.66948139]
[1742492999894,0.2486731,84270.0,84269.0,0.68577237]
[1742493000083,0.2486731,84270.0,84269.0,0.67286835]
[1742493000288,0.3673962,84270.0,84269.0,0.65757737]
[1742493000491,0.3673962,84270.0,84269.0,0.67048031]
[1742493000689,0.3673962,84270.0,84269.0,0.68577021]
[1742493000883,0.2486731,84270.0,84269.0,0.92757737]
[1742493001184,0.2486731,84270.0,84269.0,0.92657737]
[1742493001383,0.2486731,84270.0,84269.0,0.94485611]
[1742493001598,0.2486731,84270.0,84269.0,0.94248647]
[1742493001787,0.2486731,84270.0,84269.0,0.93157737]
[1742493001987,0.28301856,84275.0,84274.0,0.1187175]
[1742493002196,0.28301856,84275.0,84274.0,0.4879975]
[1742493002396,0.28301856,84275.0,84274.0,0.51618221]
[1742493002596,0.40173466,84275.0,84274.0,0.47990221]
[1742493002787,0.40173466,84275.0,84274.0,0.01290608]
[1742493002987,0.1187231,84270.0,84269.0,0.01855287]
[1742493003591,0.2187231,84270.0,84269.0,0.005]
[1742493003796,0.2187231,84270.0,84269.0,0.003]
[1742493003797,0.3015231,84270.0,84269.0,0.003]
[1742493003995,0.1187428,84256.0,84255.0,0.00017805]
[1742493004192,0.1187428,84256.0,84255.0,0.01412977]
[1742493004598,0.1187428,84256.0,84255.0,0.13287397]
[1742493004995,0.2056428,84256.0,84255.0,0.13287397]
[1742493005192,0.2056428,84256.0,84255.0,0.14577614]
[1742493005605,0.2056428,84256.0,84255.0,0.14677614]
[1742493006089,0.2056428,84256.0,84255.0,0.31247614]
[1742493006287,0.0869,84256.0,84255.0,0.31247614]
[1742493006599,0.11928,84268.0,84258.0,0.0593693]
[1742493006600,0.0593685,84261.0,84258.0,0.0593693]
[1742493006802,0.0593685,84261.0,84257.0,0.0593703]
[1742493006803,0.1719,84263.0,84262.0,0.1187344]
[1742493006993,0.1187089,84281.0,84280.0,0.118709]
[1742493007194,0.1187089,84281.0,84280.0,0.13161992]
[1742493008502,0.1187089,84281.0,84280.0,0.14650666]
[1742493008696,0.1197089,84281.0,84280.0,0.14650666]
[1742493008891,0.2047089,84281.0,84280.0,0.14650666]
[1742493009089,0.2057089,84281.0,84280.0,0.14650666]
[1742493009293,0.2057089,84281.0,84280.0,0.13161992]
[1742493010795,0.1187104,84279.0,84278.0,0.1187105]
[1742493011197,0.2007104,84279.0,84278.0,0.1187105]
[1742493011405,0.2843104,84279.0,84278.0,0.1187105]
[1742493011603,0.2843104,84279.0,84278.0,0.13241176]
[1742493013399,0.2843104,84279.0,84278.0,0.01295285]
[1742493013599,0.2843104,84279.0,84274.0,0.0593584]
[1742493013600,0.1187161,84275.0,84274.0,0.0593584]
[1742493013902,0.1187161,84275.0,84274.0,0.07231351]
[1742493014100,0.3646161,84275.0,84274.0,0.0593584]
[1742493014408,0.3646161,84275.0,84274.0,0.07274778]
[1742493015105,0.3646161,84275.0,84274.0,0.07374778]
[1742493015313,0.3646161,84275.0,84274.0,0.08660465]
[1742493015601,0.3646161,84275.0,84274.0,0.0955927]
[1742493016197,0.3646161,84275.0,84274.0,0.08273583]
[1742493020108,0.3646161,84275.0,84274.0,0.02337743]
[1742493020309,0.3646161,84275.0,84274.0,0.14209493]
[1742493021410,0.3646161,84275.0,84274.0,0.02337743]
[1742493022107,0.3646161,84275.0,84273.0,0.1187182]
[1742493022108,0.059363,84268.0,84262.0,0.5389005]
[1742493022308,0.1972304,84267.0,84265.0,0.1187287]
[1742493022513,0.2823304,84267.0,84266.0,0.0847]
[1742493022713,0.2823304,84267.0,84266.0,0.18041418]
[1742493022914,0.2823304,84267.0,84266.0,0.29914288]
[1742493023306,0.2823304,84267.0,84266.0,0.31203964]
[1742493023811,0.2823304,84267.0,84266.0,0.32731273]
[1742493023812,0.0851,84267.0,84266.0,0.32731273]
[1742493024009,0.2038273,84267.0,84266.0,0.44655273]
[1742493024621,0.2844273,84267.0,84266.0,0.46122875]
[1742493025211,0.2844273,84267.0,84266.0,0.46422875]
[1742493028310,0.2844273,84267.0,84266.0,0.46431355]
[1742493030311,0.2844273,84267.0,84266.0,0.46434682]
[1742493031307,0.2844273,84267.0,84266.0,0.34561812]
[1742493031507,0.0593658,84264.0,84258.0,0.21224375]
[1742493031711,0.1187372,84260.0,84259.0,0.01293271]
[1742493031908,0.1505372,84260.0,84259.0,0.01293271]
[1742493032221,0.2848372,84260.0,84259.0,0.01293271]
[1742493032406,0.1187386,84259.0,84258.0,0.21224375]
[1742493032816,0.2836386,84259.0,84258.0,0.21224375]
[1742493033314,0.6456386,84259.0,84258.0,0.21224375]
[1742493033517,0.6762386,84259.0,84258.0,0.21224375]
[1742493033716,0.7454386,84259.0,84258.0,0.00017805]
[1742493034118,0.6778386,84259.0,84258.0,0.00017805]
[1742493034416,0.6454386,84259.0,84258.0,0.00017805]
[1742493034616,0.7454386,84259.0,84258.0,0.00017805]
[1742493034817,0.6466386,84259.0,84258.0,0.00017805]
[1742493035113,0.7454386,84259.0,84258.0,0.00017805]
[1742493035620,0.6772386,84259.0,84258.0,0.00017805]
[1742493035810,0.6454386,84259.0,84258.0,0.00017805]
[1742493036016,0.7454386,84259.0,84258.0,0.00017805]
[1742493036213,0.6772386,84259.0,84258.0,0.00017805]
[1742493036409,0.6454386,84259.0,84258.0,0.00017805]
[1742493036610,0.7454386,84259.0,84258.0,0.00017805]
[1742493037021,0.1187668,84239.0,84238.0,0.3608]
[1742493037222,0.1187767,84232.0,84226.0,0.35233275]
[1742493037523,0.6882167,84232.0,84226.0,0.35173275]
[1742493037713,0.6876167,84232.0,84228.0,0.0593909]
[1742493037910,0.5988167,84232.0,84228.0,0.0593909]
[1742493038116,0.7611167,84232.0,84227.0,0.1553]
[1742493038718,0.77468323,84232.0,84227.0,0.1553]
[1742493039528,0.77468323,84232.0,84227.0,0.16883468]
[1742493039728,0.1187823,84228.0,84227.0,0.16883468]
[1742493040728,0.1187823,84228.0,84227.0,0.1553]
[1742493040925,0.1187823,84228.0,84227.0,0.0775]
[1742493041118,0.1187865,84225.0,84224.0,0.1625]
[1742493041324,0.1187865,84225.0,84223.0,0.00017805]
[1742493041325,0.1187879,84224.0,84223.0,0.00017805]
[1742493041522,0.2791879,84224.0,84223.0,0.00017805]
[1742493042020,0.2791879,84224.0,84223.0,0.01353229]
[1742493042325,0.2791879,84224.0,84223.0,0.00017805]
[1742493042825,0.2791879,84224.0,84223.0,0.11896745]
[1742493043015,0.1974879,84224.0,84223.0,0.11896745]
[1742493043327,0.1197879,84224.0,84223.0,0.19996745]
[1742493045127,0.1197879,84224.0,84223.0,0.21301857]
[1742493045730,0.2018879,84224.0,84223.0,0.21301857]
[1742493045920,0.1197879,84224.0,84223.0,0.21301857]
[1742493047027,0.1197879,84224.0,84223.0,0.30121857]
[1742493049429,0.001,84224.0,84223.0,0.30121857]
[1742493049630,0.0816,84237.0,84236.0,0.118771]
[1742493049825,0.05956095,84240.0,84239.0,0.1187668]
[1742493050025,0.14116095,84240.0,84239.0,0.1187668]
[1742493050421,0.05956095,84240.0,84239.0,0.13170794]
[1742493050832,0.05956095,84240.0,84239.0,0.30120794]
[1742493051034,0.17832915,84240.0,84239.0,0.30120794]
[1742493051526,0.00017805,84240.0,84239.0,0.30120794]
[1742493052119,0.00017805,84240.0,84239.0,0.30220794]
[1742493052527,0.11894345,84240.0,84239.0,0.30220794]
[1742493052831,0.01322651,84255.0,84239.0,0.30220794]
[1742493052832,0.1781167,84256.0,84255.0,0.1187442]
[1742493053035,0.2374899,84256.0,84255.0,0.1187442]
[1742493053229,0.0593671,84263.0,84255.0,0.1187442]
[1742493053230,0.118741,84258.0,84257.0,0.0593707]
[1742493053425,0.082,84265.0,84264.0,0.1187316]
[1742493053825,0.059366,84264.0,84253.0,0.00902787]
[1742493054024,0.1187456,84254.0,84253.0,0.1781173]
[1742493054228,0.1187456,84254.0,84253.0,0.0593729]
[1742493054426,0.2833456,84254.0,84253.0,0.0593729]
[1742493054926,0.2833456,84254.0,84253.0,0.07268436]
[1742493055124,0.2833456,84254.0,84250.0,0.00017805]
[1742493055125,0.1187499,84251.0,84250.0,0.00017805]
[1742493055627,0.2833499,84251.0,84250.0,0.11892935]
[1742493057834,0.2833499,84251.0,84250.0,0.00117805]
[1742493058532,0.2833499,84251.0,84250.0,0.00017805]
[1742493058736,0.2833499,84251.0,84250.0,0.00117805]
[1742493058932,0.2833499,84251.0,84250.0,0.11992935]
[1742493059240,0.2833499,84251.0,84250.0,0.00117805]
[1742493060136,0.2833499,84251.0,84250.0,0.00017805]
[1742493060336,0.2833499,84251.0,84250.0,0.17027805]
[1742493061136,0.2833499,84251.0,84250.0,0.00017805]
[1742493061942,0.2843499,84251.0,84250.0,0.08467805]
[1742493062137,0.2843499,84251.0,84250.0,0.20342935]
[1742493062333,0.2843499,84251.0,84250.0,0.28902935]
[1742493062842,0.2843499,84251.0,84250.0,0.17027805]
[1742493063730,0.2843499,84251.0,84250.0,0.08467805]
[1742493064133,0.2833499,84251.0,84250.0,0.08467805]
[1742493064443,0.2833499,84251.0,84250.0,0.20342935]
[1742493064633,0.2833499,84251.0,84250.0,0.08467805]
[1742493065030,0.2833499,84251.0,84250.0,0.17087805]
[1742493065738,0.1656,84251.0,84250.0,0.28962935]
[1742493065944,0.1197499,84251.0,84250.0,0.65042935]
[1742493066331,0.001,84251.0,84250.0,0.65042935]
[1742493066645,0.1197499,84251.0,84250.0,0.65142935]
[1742493067542,0.2915499,84251.0,84250.0,0.65142935]
[1742493068336,0.2905499,84251.0,84250.0,0.65142935]
[1742493068536,0.2039425,84257.0,84256.0,0.1187428]
[1742493068744,0.0852,84257.0,84256.0,0.3679428]
[1742493068931,0.2039414,84257.0,84256.0,0.3679428]
[1742493069130,0.0593662,84264.0,84258.0,0.0593695]
[1742493069334,0.1781006,84264.0,84263.0,0.118733]
[1742493069738,0.1781006,84264.0,84263.0,0.292033]
[1742493070142,0.1781006,84264.0,84263.0,0.30543301]
[1742493070339,0.1187344,84262.0,84261.0,0.3608]
[1742493070540,0.1187499,84251.0,84241.0,0.11924]
[1742493070844,0.1187499,84251.0,84250.0,0.49294763]
[1742493071039,0.1187499,84251.0,84250.0,0.01339633]
[1742493071240,0.2013499,84251.0,84250.0,0.01339633]
[1742493071643,0.2013499,84251.0,84250.0,0.00017805]
[1742493073037,0.2013499,84251.0,84250.0,0.00117805]
[1742493073933,0.2013499,84251.0,84250.0,0.00017805]
[1742493076343,0.2023499,84251.0,84250.0,0.00017805]
[1742493077147,0.2013499,84251.0,84250.0,0.00017805]
[1742493077736,0.3013499,84251.0,84250.0,0.00017805]
[1742493077936,0.1187795,84230.0,84229.0,0.1606]
[1742493078139,0.178177,84227.0,84226.0,0.1187847]
[1742493078342,0.178177,84227.0,84226.0,0.0806]
[1742493078543,0.1187865,84225.0,84224.0,0.0869]
[1742493078748,0.1187865,84225.0,84224.0,0.2056879]
[1742493078938,0.1187865,84225.0,84224.0,0.3656879]
[1742493079142,0.2019865,84225.0,84224.0,0.3656879]
[1742493079351,0.2019865,84225.0,84224.0,0.37904005]
[1742493079648,0.5627865,84225.0,84224.0,0.37904005]
[1742493079846,0.2019865,84225.0,84224.0,0.37904005]
[1742493080540,0.5637865,84225.0,84224.0,0.38104005]
[1742493080735,0.5637865,84225.0,84224.0,0.26225215]
[1742493080944,0.5637865,84225.0,84224.0,0.2489]
[1742493081547,0.6453865,84225.0,84224.0,0.2489]
[1742493081756,0.6453865,84225.0,84224.0,0.002]
[1742493083048,0.6453865,84225.0,84224.0,0.1197879]
[1742493083049,0.7037805,84225.0,84224.0,0.1197879]
[1742493084138,0.7037805,84225.0,84224.0,0.001]
[1742493084746,0.7037805,84225.0,84224.0,0.1197879]
[1742493085258,0.6205805,84225.0,84224.0,0.2894879]
[1742493085456,0.5951617,84255.0,84227.0,0.178172]
[1742493085457,0.1781733,84229.0,84227.0,0.178172]
[1742493085642,0.1187791,84231.0,84229.0,0.0593904]
[1742493085845,0.1187791,84231.0,84230.0,0.0849]
[1742493086153,0.1781688,84231.0,84230.0,0.1697]
[1742493086353,0.3419688,84231.0,84230.0,0.2884795]
[1742493088653,0.3429688,84231.0,84230.0,0.2884795]
[1742493090159,0.3419688,84231.0,84230.0,0.2884795]
[1742493090463,0.3419688,84231.0,84230.0,0.2035795]
[1742493091755,0.3419688,84231.0,84230.0,0.2863795]
[1742493092661,0.1187687,84238.0,84232.0,0.1187767]
[1742493092856,0.00017805,84233.0,84232.0,0.1187767]
[1742493093160,0.00017805,84233.0,84232.0,0.2805767]
[1742493093750,0.11895335,84233.0,84232.0,0.1187767]
[1742493093956,0.11895335,84233.0,84232.0,0.2816767]
[1742493094170,0.28825335,84233.0,84232.0,0.2826767]
[1742493094856,0.28825335,84233.0,84232.0,0.2836767]
[1742493096262,0.28825335,84233.0,84232.0,0.2816767]
[1742493096464,0.28825335,84233.0,84232.0,0.2826767]
[1742493097056,0.28825335,84233.0,84232.0,0.1629]
[1742493097359,0.28825335,84233.0,84232.0,0.1649]
[1742493097563,0.28825335,84233.0,84232.0,0.2836767]
[1742493098153,0.28825335,84233.0,84232.0,0.2826767]
[1742493100066,0.28925335,84233.0,84232.0,0.2816767]
[1742493100864,0.11895335,84233.0,84232.0,0.2816767]
[1742493101166,0.00017805,84233.0,84232.0,0.2816767]
[1742493101466,0.11895335,84233.0,84232.0,0.2816767]
[1742493102566,0.11895335,84233.0,84232.0,0.079]
[1742493102862,0.1187795,84230.0,84229.0,0.0876]
[1742493103169,0.1187795,84230.0,84229.0,0.1736]
[1742493103368,0.2875795,84230.0,84229.0,0.2923809]
[1742493104455,0.1187809,84229.0,84228.0,0.0839]
[1742493104869,0.2875809,84229.0,84228.0,0.2026823]
[1742493105059,0.2875809,84229.0,84228.0,0.0839]
[1742493105466,0.1187823,84228.0,84226.0,0.059392]
[1742493105665,0.4795837,84227.0,84226.0,0.059392]
[1742493105966,0.2813837,84227.0,84226.0,0.059392]
[1742493106168,0.2813837,84227.0,84226.0,0.144192]
[1742493106367,0.2813837,84227.0,84226.0,0.0848]
[1742493106670,0.2813837,84227.0,84226.0,0.2035851]
[1742493107369,0.2813837,84227.0,84226.0,0.2828851]
[1742493107859,0.2813837,84227.0,84226.0,0.2035851]
[1742493108268,0.6421837,84227.0,84226.0,0.2035851]
[1742493108466,0.6421837,84227.0,84226.0,0.2828851]
[1742493108673,0.2813837,84227.0,84226.0,0.2828851]
[1742493109062,0.6421837,84227.0,84226.0,0.2828851]
[1742493109263,0.2813837,84227.0,84226.0,0.2828851]
[1742493110472,0.6421837,84227.0,84226.0,0.2828851]
[1742493110871,0.2813837,84227.0,84226.0,0.2828851]
[1742493112578,0.6421837,84227.0,84226.0,0.2828851]
[1742493113078,0.2813837,84227.0,84226.0,0.2828851]
[1742493113577,0.6421837,84227.0,84226.0,0.2828851]
[1742493113972,0.1626,84227.0,84226.0,0.2828851]
[1742493114173,0.178172,84230.0,84229.0,0.1187809]
[1742493114484,0.1440897,84230.0,84229.0,0.1187809]
[1742493114679,0.2250897,84230.0,84229.0,0.1187809]
[1742493116380,0.05956575,84233.0,84229.0,0.1187809]
[1742493116572,0.05956575,84233.0,84232.0,0.1187767]
[1742493116573,0.11895335,84233.0,84232.0,0.1187767]
[1742493117078,0.27935335,84233.0,84232.0,0.2031767]
[1742493118880,0.28035335,84233.0,84232.0,0.2031767]
[1742493120176,0.0593919,84227.0,84226.0,0.1781741]
[1742493120377,0.0593919,84227.0,84226.0,0.2604741]
[1742493121181,0.2250919,84227.0,84226.0,0.2604741]
[1742493121775,0.2250919,84227.0,84226.0,0.2614741]
[1742493121977,0.3438756,84227.0,84226.0,0.2614741]
[1742493122174,0.3438756,84227.0,84226.0,0.1426918]
[1742493122387,0.3438756,84227.0,84226.0,0.2020851]
[1742493123184,0.3438756,84227.0,84226.0,0.2010851]
[1742493123382,0.3438756,84227.0,84226.0,0.2020851]
[1742493124989,0.1187936,84220.0,84216.0,0.00017805]
[1742493125198,0.1781939,84219.0,84218.0,0.1187951]